fUSD/lending_fUSD_20260417
["ID","MTS","AMOUNT","RATE_DAILY","PERIOD"]
[420623270,1776358240612,-526.82996744,0.0001019,2]
[420623504,1776358242933,-1027.23724345,0.0001019,2]
[420623506,1776358242945,-1597.84305825,0.0001019,2]
[420623509,1776358242957,-10846.19141604,0.0001019,2]
[420623525,1776358243103,-68.8424545,0.0001019,2]
[420623808,1776358245832,-1656.684,0.0001019,2]
[420623810,1776358245843,-3766.79534422,0.0001019,2]
[420623812,1776358245855,-159846.91373983,0.0001019,2]
[420623911,1776358246944,-364824.4810837,0.0001019,2]
[420623913,1776358246954,-519.49127568,0.000102,2]
[420623915,1776358246963,-167516.58958013,0.000102,2]
[420623918,1776358246980,-6540.97337793,0.000102,2]
[420623920,1776358246995,-387.93218086,0.000102,2]
[420623927,1776358247044,497106.9118,9.421e-05,2]
[420624115,1776358325422,2000.0,9.296e-05,2]
[420624117,1776358380459,500.0,0.000165,30]
[420624119,1776358408573,168.55,9.211e-05,2]
[420624120,1776358415966,1014943.2545,9.421e-05,2]
[420624121,1776358449009,150.0,9.213e-05,2]
[420624122,1776358500418,1600.0,9.199e-05,2]
[420624131,1776358542631,150.0,9.212e-05,2]
[420624133,1776358633151,150.0,9.19e-05,2]
[420624134,1776358720256,150.0,9.183e-05,2]
[420624135,1776358749059,150.0,9.163e-05,2]
[420624137,1776358780929,22763.77,9.011e-05,2]
[420624138,1776358801467,150.0,9.183e-05,2]
[420624145,1776358879734,150.0,9.182e-05,2]
[420624147,1776358953794,150.0,9.182e-05,2]
[420624148,1776358960296,1000.0,9.421e-05,2]
[420624150,1776359021675,150.0,9.183e-05,2]
[420624153,1776359116982,150.0,9.247e-05,2]
[420624154,1776359117018,150.0,9.34e-05,2]
[420624155,1776359117062,150.0,9.433e-05,2]
[420624158,1776359129184,150.0,9.247e-05,2]
[420624159,1776359129968,150.0,9.247e-05,2]
[420624160,1776359130495,150.0,9.247e-05,2]
[420624161,1776359134065,150.0,9.247e-05,2]
[420624162,1776359134197,259.74988373,9.247e-05,2]
[420624163,1776359134265,150.0,9.247e-05,2]
[420624164,1776359134311,150.0,9.418e-05,2]
[420624165,1776359137069,150.00000001,9.247e-05,2]
[420624166,1776359141229,150.0,9.247e-05,2]
[420624167,1776359141317,150.0,9.247e-05,2]
[420624168,1776359146392,150.0,9.247e-05,2]
[420624169,1776359146820,150.0,9.247e-05,2]
[420624172,1776359210045,177.06,9.162e-05,2]
[420624173,1776359252143,84084.018,9.421e-05,2]
[420624174,1776359275484,150.0,9.162e-05,2]
[420624175,1776359325142,133741.064,9.421e-05,2]
[420624176,1776359340456,150.0,9.161e-05,2]
[420624177,1776359406969,150.0,9.154e-05,2]
[420624178,1776359432079,-150.0,9.446e-05,2]
[420624179,1776359432089,-250.0,9.449e-05,2]
[420624180,1776359432100,-179.55883432,9.452e-05,2]
[420624181,1776359432109,-150.0,9.452e-05,2]
[420624182,1776359432121,-151.23,9.454e-05,2]
[420624183,1776359432132,-164.1,9.457e-05,2]
[420624184,1776359432143,-162.27,9.461e-05,2]
[420624185,1776359432154,-272.7,9.462e-05,2]
[420624186,1776359432165,-150.0,9.482e-05,2]
[420624187,1776359432175,-150.0,9.482e-05,2]
[420624188,1776359432185,-150.0,9.483e-05,2]
[420624189,1776359432195,-270.55,9.483e-05,2]
[420624190,1776359432205,-150.0,9.483e-05,2]
[420624191,1776359432215,-150.0,9.49e-05,2]
[420624192,1776359432224,-1200.0,9.498e-05,2]
[420624193,1776359432235,-300.0,9.499e-05,2]
[420624194,1776359432244,-3405.8692905,9.5e-05,2]
[420624195,1776359432265,-908.41925649,9.5e-05,2]
[420624196,1776359432274,-150.0,9.503e-05,2]
[420624197,1776359432284,-150.0,9.503e-05,2]
[420624198,1776359432293,-150.0,9.512e-05,2]
[420624199,1776359432303,-150.0,9.513e-05,2]
[420624200,1776359432312,-805.0226946,9.52e-05,2]
[420624201,1776359432322,-150.0,9.527e-05,2]
[420624202,1776359432332,-179.55883432,9.527e-05,2]
[420624203,1776359432341,-150.0,9.589e-05,2]
[420624204,1776359432351,-150.0,9.589e-05,2]
[420624205,1776359432360,-152.0,9.594e-05,7]
[420624206,1776359432370,-186.03438918,9.608e-05,2]
[420624207,1776359432379,-150.0,9.62e-05,2]
[420624208,1776359432389,-150.0,9.62e-05,2]
[420624209,1776359432399,-150.0,9.658e-05,2]
[420624210,1776359432408,-150.0,9.669e-05,2]
[420624211,1776359432417,-9999.99,9.67e-05,2]
[420624212,1776359432426,-150.0,9.714e-05,2]
[420624213,1776359432436,-150.0,9.746e-05,2]
[420624214,1776359432445,-150.0,9.76e-05,2]
[420624215,1776359432455,-150.0,9.76e-05,2]
[420624216,1776359432464,-150.0,9.76e-05,2]
[420624217,1776359432473,-150.0,9.76e-05,2]
[420624218,1776359432483,-150.0,9.76e-05,2]
[420624219,1776359432492,-150.0,9.782e-05,2]
[420624220,1776359432502,-150.0,9.782e-05,2]
[420624221,1776359432512,-150.0,9.783e-05,2]
[420624223,1776359432521,-150.0,9.783e-05,2]
[420624224,1776359432531,-200.0,9.787e-05,2]
[420624225,1776359432541,-721.12765535,9.787e-05,2]
[420624226,1776359432550,-200.0,9.787e-05,2]
[420624227,1776359432560,-151.0,9.787e-05,2]
[420624228,1776359432570,-174.61919141,9.787e-05,2]
[420624229,1776359432580,-500.0,9.787e-05,2]
[420624230,1776359432589,-500.0,9.787e-05,2]
[420624231,1776359432598,-500.0,9.787e-05,2]
[420624232,1776359432608,-743.50770149,9.787e-05,2]
[420624233,1776359432618,-151.0,9.787e-05,2]
[420624234,1776359432628,-500.0,9.787e-05,2]
[420624235,1776359432637,-250.0,9.787e-05,2]
[420624236,1776359432647,-153.75026935,9.787e-05,2]
[420624237,1776359432656,-500.0,9.787e-05,2]
[420624238,1776359432666,-150.0,9.79e-05,2]
[420624239,1776359432676,-150.0,9.807e-05,2]
[420624240,1776359432685,-150.0,9.812e-05,2]
[420624241,1776359432694,-150.0,9.813e-05,2]
[420624242,1776359432705,-195.73474906,9.841e-05,2]
[420624243,1776359432715,-164.1,9.847e-05,2]
[420624244,1776359432725,-150.0,9.863e-05,2]
[420624245,1776359432734,-150.0,9.9e-05,2]
[420624246,1776359432743,-500.0,9.91e-05,2]
[420624247,1776359432753,-150.0,9.922e-05,2]
[420624248,1776359432763,-150.0,9.932e-05,2]
[420624249,1776359432772,-150.0,9.932e-05,2]
[420624250,1776359432781,-150.0,9.994e-05,2]
[420624251,1776359432791,-895.67459001,0.0001,2]
[420624252,1776359432800,-2757.45734095,0.0001,2]
[420624253,1776359432809,-16198.45909822,0.0001,2]
[420624254,1776359432818,-348.94553568,0.0001,2]
[420624255,1776359432828,-151.0,0.0001,2]
[420624256,1776359432837,-151.0,0.0001,2]
[420624257,1776359432847,-151.0,0.0001,2]
[420624258,1776359432856,-151.0,0.0001,2]
[420624259,1776359432866,-151.0,0.0001,2]
[420624260,1776359432876,-500.0,0.0001,2]
[420624261,1776359432885,-534.67829723,0.0001,2]
[420624262,1776359432894,-150.0,0.00010017,2]
[420624263,1776359432904,-150.0,0.00010017,2]
[420624264,1776359432913,-150.0,0.00010068,2]
[420624265,1776359432922,-2500.0,0.00010084,2]
[420624266,1776359432931,-150.0,0.00010087,2]
[420624267,1776359432941,-1000.0,0.00010099,2]
[420624268,1776359432950,-150.0,0.00010103,2]
[420624269,1776359432961,-500.0,0.00010173,2]
[420624270,1776359432970,-500.0,0.00010173,2]
[420624271,1776359432980,-500.0,0.00010173,2]
[420624272,1776359432990,-500.0,0.00010173,2]
[420624273,1776359433000,-500.0,0.00010173,2]
[420624274,1776359433009,-500.0,0.00010173,2]
[420624275,1776359433019,-500.0,0.00010173,2]
[420624276,1776359433028,-500.0,0.00010173,2]
[420624277,1776359433037,-500.0,0.00010173,2]
[420624278,1776359433047,-500.0,0.00010173,2]
[420624279,1776359433058,-150.0,0.00010181,2]
[420624280,1776359433069,-500.0,0.00010183,2]
[420624281,1776359433078,-500.0,0.00010183,2]
[420624282,1776359433089,-500.0,0.00010183,2]
[420624283,1776359433099,-500.0,0.00010183,2]
[420624284,1776359433109,-500.0,0.00010183,2]
[420624285,1776359433120,-500.0,0.00010183,2]
[420624286,1776359433131,-500.0,0.00010183,2]
[420624287,1776359433140,-500.0,0.00010183,2]
[420624288,1776359433151,-500.0,0.00010183,2]
[420624289,1776359433161,-314.46602083,0.00010183,2]
[420624290,1776359433174,-185.53397917,0.00010183,2]
[420624291,1776359433184,-500.0,0.00010183,2]
[420624292,1776359433193,-500.0,0.00010183,2]
[420624293,1776359433204,-500.0,0.00010183,2]
[420624294,1776359433214,-500.0,0.00010183,2]
[420624295,1776359433224,-543.93377618,0.00010183,2]
[420624296,1776359433233,-500.0,0.00010183,2]
[420624297,1776359433242,-500.0,0.00010183,2]
[420624298,1776359433251,-500.0,0.00010183,2]
[420624299,1776359433261,-500.0,0.00010183,2]
[420624300,1776359433270,-500.0,0.00010183,2]
[420624301,1776359433279,-500.0,0.00010183,2]
[420624302,1776359433289,-500.0,0.00010183,2]
[420624303,1776359433298,-500.0,0.00010183,2]
[420624304,1776359433307,-500.0,0.00010183,2]
[420624305,1776359433316,-500.0,0.00010183,2]
[420624306,1776359433326,-500.0,0.00010183,2]
[420624307,1776359433335,-500.0,0.00010183,2]
[420624308,1776359433345,-500.0,0.00010183,2]
[420624309,1776359433355,-500.0,0.00010183,2]
[420624310,1776359433365,-500.0,0.00010183,2]
[420624311,1776359433375,-500.0,0.00010183,2]
[420624312,1776359433384,-500.0,0.00010183,2]
[420624313,1776359433394,-500.0,0.00010183,2]
[420624314,1776359433403,-500.0,0.00010183,2]
[420624315,1776359433412,-500.0,0.00010183,2]
[420624316,1776359433421,-500.0,0.00010183,2]
[420624317,1776359433430,-500.0,0.00010183,2]
[420624318,1776359433439,-500.0,0.00010183,2]
[420624319,1776359433449,-500.0,0.00010183,2]
[420624320,1776359433460,-500.0,0.00010183,2]
[420624321,1776359433469,-500.0,0.00010183,2]
[420624322,1776359433479,-500.0,0.00010183,2]
[420624323,1776359433488,-500.0,0.00010183,2]
[420624324,1776359433497,-500.0,0.00010183,2]
[420624325,1776359433507,-321.77063694,0.00010183,2]
[420624326,1776359433520,-178.22936306,0.00010183,2]
[420624327,1776359433529,-500.0,0.00010183,2]
[420624328,1776359433539,-500.0,0.00010183,2]
[420624329,1776359433549,-500.0,0.00010183,2]
[420624330,1776359433559,-500.0,0.00010183,2]
[420624331,1776359433569,-500.0,0.00010183,2]
[420624332,1776359433579,-500.0,0.00010183,2]
[420624333,1776359433589,-500.0,0.00010183,2]
[420624334,1776359433600,-500.0,0.00010183,2]
[420624335,1776359433610,-500.0,0.00010183,2]
[420624336,1776359433620,-500.0,0.00010183,2]
[420624337,1776359433630,-500.0,0.00010183,2]
[420624338,1776359433639,-500.0,0.00010183,2]
[420624339,1776359433649,-500.0,0.00010183,2]
[420624340,1776359433659,-500.0,0.00010183,2]
[420624341,1776359433670,-500.0,0.00010183,2]
[420624342,1776359433682,-500.0,0.00010183,2]
[420624343,1776359433691,-500.0,0.00010183,2]
[420624344,1776359433700,-354.39337762,0.00010183,2]
[420624345,1776359433711,-500.0,0.00010183,2]
[420624346,1776359433720,-500.0,0.00010183,2]
[420624347,1776359433730,-500.0,0.00010183,2]
[420624348,1776359433739,-500.0,0.00010183,2]
[420624349,1776359433749,-500.0,0.00010183,2]
[420624350,1776359433759,-500.0,0.00010183,2]
[420624351,1776359433769,-500.0,0.00010183,2]
[420624352,1776359433778,-500.0,0.00010183,2]
[420624353,1776359433787,-500.0,0.00010183,2]
[420624354,1776359433796,-500.0,0.00010183,2]
[420624355,1776359433806,-500.0,0.00010183,2]
[420624356,1776359433815,-335.43933776,0.00010183,2]
[420624357,1776359433825,-500.0,0.00010183,2]
[420624358,1776359433835,-500.0,0.00010183,2]
[420624359,1776359433844,-500.0,0.00010183,2]
[420624360,1776359433853,-515.47367815,0.00010183,2]
[420624361,1776359433862,-500.0,0.00010183,2]
[420624362,1776359433872,-155.59115507,0.00010183,2]
[420624363,1776359433881,-501.11505511,0.00010183,2]
[420624364,1776359433890,-500.0,0.00010183,2]
[420624365,1776359433900,-507.03076701,0.00010183,2]
[420624366,1776359433909,-4532.9650271,0.00010184,2]
[420624367,1776359433919,-917.3327272,0.00010184,2]
[420624368,1776359433928,-913.3576086,0.00010184,2]
[420624369,1776359433937,-37733.60277795,0.00010184,2]
[420624370,1776359433949,-7586.54413935,0.00010184,2]
[420624371,1776359433961,-43927.13193085,0.00010184,2]
[420624372,1776359434056,-625.05307491,0.00010184,2]
[420624373,1776359434067,-384.70046495,0.00010184,2]
[420624374,1776359434099,-685.28174376,0.00010184,2]
[420624375,1776359434110,-1255.39034168,0.00010184,2]
[420624376,1776359434122,-8855.65790752,0.00010184,2]
[420624377,1776359434137,-370.97500365,0.00010184,2]
[420624378,1776359434148,-934.45208279,0.00010184,2]
[420624379,1776359434159,-23086.90086726,0.00010184,2]
[420624385,1776359438281,-2895.62499999,0.00010184,2]
[420624386,1776359438383,-292.87763803,0.00010184,2]
[420624387,1776359438395,-730.938443,0.00010184,2]
[420624388,1776359438490,-48832.341186,0.00010184,2]
[420624389,1776359438598,-321.83019432,0.00010184,2]
[420624390,1776359438609,-1000.0,0.00010184,2]
[420624508,1776359441796,-1583.41326918,0.00010184,2]
[420624515,1776359441853,-2769.58067353,0.00010184,2]
[420624518,1776359441864,-1297.24699382,0.00010184,2]
[420624520,1776359441879,-507.18,0.00010184,2]
[420624554,1776359443172,-493.65787439,0.00010184,2]
[420624562,1776359443332,-841.2708922,0.00010184,2]
[420624563,1776359443343,-1143.02930338,0.00010184,2]
[420624564,1776359443386,-7765.24741519,0.00010184,2]
[420624565,1776359443397,-896.1004559,0.00010184,2]
[420624566,1776359443408,-680.76275655,0.00010184,2]
[420624567,1776359443439,-1355.60596346,0.00010184,2]
[420624568,1776359443493,-7780.12675689,0.00010184,2]
[420624569,1776359443503,-12252.3357973,0.00010184,2]
[420624570,1776359443512,-500.0,0.00010199,2]
[420624571,1776359443522,-598.68218413,0.00010199,2]
[420624572,1776359443531,-440.08990835,0.00010199,2]
[420624573,1776359443540,-500.0,0.00010199,2]
[420624574,1776359443549,-233.86167258,0.00010199,2]
[420624575,1776359443559,-40725.54179739,0.000102,2]
[420624576,1776359443569,-150.40090945,0.000102,2]
[420624577,1776359443578,-151.19826568,0.000102,2]
[420624578,1776359443588,-151.05633583,0.000102,2]
[420624579,1776359443597,-151.28423552,0.000102,2]
[420624580,1776359443606,-535.3362739,0.000102,2]
[420624581,1776359443616,-3044.243,0.000102,2]
[420624582,1776359443625,-153.775,0.000102,2]
[420624583,1776359443634,-406.88779814,0.000102,2]
[420624584,1776359443644,-151.0,0.000102,2]
[420624585,1776359443653,-500.0,0.000102,2]
[420624587,1776359443662,-1966.50021326,0.000102,2]
[420624588,1776359443671,-1500.0,0.000102,2]
[420624589,1776359443680,-500.0,0.00010201,2]
[420624590,1776359443701,-151.0,0.00010204,2]
[420624591,1776359443711,-32208.0984299,0.00010207,2]
[420624592,1776359443720,-1169.1485472,0.00010207,2]
[420624593,1776359443729,-3528.0,0.0001022,2]
[420624594,1776359443739,-164.109,0.0001022,2]
[420624595,1776359443748,-1047.0,0.0001022,2]
[420624596,1776359443758,-1263.0,0.0001022,2]
[420624597,1776359443767,-200.0,0.00010236,2]
[420624598,1776359443777,-300.0,0.00010236,2]
[420624599,1776359443786,-164.1,0.00010237,2]
[420624600,1776359443796,-416.0,0.00010245,2]
[420624601,1776359443805,-2473.0,0.00010245,2]
[420624602,1776359443814,-150.0,0.00010274,2]
[420624603,1776359443824,-150.0,0.00010274,2]
[420624604,1776359443833,-150.0,0.00010274,2]
[420624605,1776359443843,-150.0,0.00010274,2]
[420624606,1776359443852,-150.0,0.00010274,2]
[420624607,1776359443861,-150.0,0.00010274,2]
[420624608,1776359443870,-150.0,0.00010274,2]
[420624609,1776359443880,-150.0,0.00010274,2]
[420624610,1776359443889,-150.0,0.00010274,2]
[420624613,1776359443899,-16331.00397134,0.00010287,2]
[420624615,1776359443908,-277.92741609,0.0001029,2]
[420624617,1776359443917,-9009.405579,0.0001029,2]
[420624619,1776359443927,-17668.362857,0.0001029,2]
[420624621,1776359443936,-258.923263,0.0001029,2]
[420624623,1776359443946,-151.0,0.00010297,2]
[420624625,1776359443955,-710.17997811,0.00010299,2]
[420624627,1776359443966,-155.0,0.00010299,2]
[420624628,1776359443975,-251.0,0.000103,5]
[420624629,1776359443986,-398.0,0.000103,5]
[420624630,1776359443997,-389.0,0.000103,5]
[420624631,1776359444007,-250.0,0.000103,2]
[420624632,1776359444017,-204665.82266928,0.000103,2]
[420624633,1776359444031,-1057.89460526,0.000103,2]
[420624634,1776359444054,-5094.89507245,0.000103,2]
[420624640,1776359446027,-9988.02,0.000103,2]
[420624641,1776359446305,-398116.99892274,0.000103,2]
[420624642,1776359446317,-431.885,0.000103,2]
[420624643,1776359446347,-220290.59306779,0.000103,2]
[420624644,1776359446359,-109933.53527542,0.000103,2]
[420624645,1776359446371,-450.80343584,0.000103,2]
[420624646,1776359446384,-11680.0065906,0.000103,2]
[420624647,1776359446455,-600.19,0.000103,2]
[420624648,1776359446467,-804.94870996,0.000103,2]
[420624649,1776359446479,-1123.71239335,0.000103,2]
[420624650,1776359446491,-1362.91705858,0.000103,2]
[420624651,1776359446511,-1423.40184853,0.000103,2]
[420624652,1776359466066,3695.53003931,0.00010084,30]
[420624653,1776359466399,3695.53003931,0.000103,30]
[420624654,1776359467886,3695.53003931,0.0001032,30]
[420624655,1776359469260,3695.53003931,0.00010332,30]
[420624656,1776359482959,113489.5315,9.421e-05,2]
[420624657,1776359549572,3903.8375,9.421e-05,2]
[420624662,1776359779766,739.10600786,9.759e-05,30]
[420624663,1776359780855,739.10600786,9.92e-05,30]
[420624664,1776359782078,739.10600786,0.00010046,30]
[420624665,1776359783280,739.10600786,0.00010083,30]
[420624666,1776359831409,664.24,9.293e-05,2]
[420624667,1776360002693,5000.0,9.405e-05,2]
[420624668,1776360006008,14092.44,9.248e-05,2]
[420624669,1776360033297,4467.5,9.247e-05,2]
[420624670,1776360046838,600.0,9.488e-05,120]
[420624671,1776360047377,600.0,9.492e-05,120]
[420624672,1776360047935,600.0,9.496e-05,120]
[420624673,1776360048526,600.0,9.5e-05,120]
[420624674,1776360049096,158.0,9.504e-05,120]
[420624675,1776360069505,295.64240314,9.639e-05,30]
[420624676,1776360071001,443.46360471,9.657e-05,30]
[420624677,1776360122191,1500.0,9.252e-05,2]
[420624678,1776360208639,2000.0,9.156e-05,2]
[420624680,1776360416775,1398.54,9.156e-05,2]
[420624681,1776360444774,200.0,9.142e-05,2]
[420624682,1776360451182,150.0,9.488e-05,120]
[420624689,1776360632247,-163.5,9.488e-05,2]
[420624690,1776360632257,-285.03,9.639e-05,2]
[420624691,1776360632267,-150.3,9.676e-05,2]
[420624692,1776360632277,-1026.91184984,9.75e-05,2]
[420624693,1776360632287,-300.0,9.75e-05,2]
[420624694,1776360632296,-1200.0,9.751e-05,2]
[420624695,1776360632306,-1200.0,9.751e-05,2]
[420624696,1776360632316,-300.0,9.751e-05,2]
[420624697,1776360632326,-578.20924308,9.752e-05,2]
[420624698,1776360632336,-500.0,9.752e-05,2]
[420624699,1776360632345,-151.0,9.752e-05,2]
[420624700,1776360632356,-151.0,9.752e-05,2]
[420624701,1776360632365,-174.61919141,9.752e-05,2]
[420624702,1776360632376,-152.99,9.759e-05,2]
[420624703,1776360632386,-500.0,9.807e-05,2]
[420624704,1776360632397,-151.0,9.807e-05,2]
[420624705,1776360632407,-438.34624736,9.862e-05,2]
[420624706,1776360632444,-61.65375264,9.862e-05,2]
[420624707,1776360632454,-151.0,9.862e-05,2]
[420624708,1776360632463,-250.9533317,9.917e-05,2]
[420624709,1776360632475,-249.0466683,9.917e-05,2]
[420624710,1776360632484,-151.0,9.917e-05,2]
[420624711,1776360632493,-152.63,9.92e-05,2]
[420624712,1776360632502,-283.71624736,9.972e-05,2]
[420624713,1776360632519,-216.28375264,9.972e-05,2]
[420624714,1776360632528,-213.9027629,9.972e-05,2]
[420624715,1776360632538,-152.0,9.998e-05,7]
[420624716,1776360632547,-317.81348446,0.00010027,2]
[420624725,1776360638420,-182.18651554,0.00010027,2]
[420624726,1776360638430,-152.98789781,0.00010046,2]
[420624727,1776360638439,-134.56137596,0.00010071,2]
[420624728,1776360638451,-974.33676083,0.00010071,2]
[420624729,1776360638477,-215.58628605,0.00010071,2]
[420624730,1776360638486,-500.0,0.00010082,2]
[420624731,1776360638495,-231.99119395,0.00010084,2]
[420624732,1776360638534,-768.00880605,0.00010084,2]
[420624733,1776360638543,-152.0,0.00010099,7]
[420624734,1776360638552,-131.73969851,0.00010137,2]
[420624735,1776360638564,-368.26030149,0.00010137,2]
[420624736,1776360638573,-500.0,0.00010137,2]
[420624737,1776360638582,-150.0,0.00010137,2]
[420624738,1776360638591,-164.06870879,0.00010137,2]
[420624739,1776360638602,-335.93129121,0.00010137,2]
[420624740,1776360638612,-300.0,0.00010138,2]
[420624741,1776360638622,-1140.1332922,0.00010165,2]
[420624742,1776360638631,-2127.77295587,0.00010196,2]
[420624743,1776360638740,-372.22704413,0.00010196,2]
[420624744,1776360638750,-347.7875066,0.00010226,2]
[420624745,1776360638761,-337.67425972,0.00010226,2]
[420624746,1776360638771,-1370.64896062,0.0001023,2]
[420624747,1776360638780,-386.01818764,0.00010239,2]
[420624748,1776360638790,-399.0,0.00010239,2]
[420624749,1776360638800,-200.0,0.0001024,2]
[420624750,1776360638810,-151.0,0.0001024,2]
[420624751,1776360638820,-151.0,0.0001024,2]
[420624752,1776360638830,-721.12765535,0.0001024,2]
[420624753,1776360638839,-151.0,0.0001024,2]
[420624754,1776360638849,-151.0,0.0001024,2]
[420624755,1776360638859,-1428.38747117,0.0001024,2]
[420624756,1776360638869,-200.0,0.00010247,2]
[420624758,1776360638880,-200.0,0.00010247,2]
[420624759,1776360638890,-555.46770467,0.0001025,2]
[420624760,1776360638900,-500.0,0.00010273,2]
[420624761,1776360638910,-500.0,0.00010273,2]
[420624762,1776360638919,-500.0,0.00010273,2]
[420624763,1776360638930,-500.0,0.00010273,2]
[420624764,1776360638940,-3207.18,0.00010273,2]
[420624765,1776360638950,-193.167,0.00010273,2]
[420624766,1776360638959,-224.65,0.00010282,2]
[420624767,1776360638970,-334.62,0.00010295,2]
[420624768,1776360638979,-500.0,0.00010295,2]
[420624769,1776360638989,-500.0,0.00010295,2]
[420624770,1776360638999,-500.0,0.00010295,2]
[420624771,1776360639009,-500.0,0.00010295,2]
[420624772,1776360639019,-500.0,0.00010295,2]
[420624773,1776360639028,-500.0,0.00010295,2]
[420624774,1776360639038,-500.0,0.00010295,2]
[420624775,1776360639048,-500.0,0.00010295,2]
[420624776,1776360639060,-523.18168358,0.00010295,2]
[420624777,1776360639072,-500.0,0.00010295,2]
[420624778,1776360639082,-500.0,0.00010295,2]
[420624779,1776360639091,-500.0,0.00010295,2]
[420624780,1776360639101,-500.0,0.00010295,2]
[420624781,1776360639110,-500.0,0.00010295,2]
[420624782,1776360639119,-500.0,0.00010295,2]
[420624783,1776360639128,-500.0,0.00010295,2]
[420624784,1776360639138,-500.0,0.00010295,2]
[420624785,1776360639148,-500.0,0.00010295,2]
[420624786,1776360639157,-500.0,0.00010295,2]
[420624787,1776360639166,-500.0,0.00010295,2]
[420624788,1776360639175,-500.0,0.00010295,2]
[420624789,1776360639185,-500.0,0.00010295,2]
[420624790,1776360639195,-3116.261716,0.00010296,2]
[420624791,1776360639205,-110231.05238205,0.00010296,2]
[420624792,1776360639222,-174180.37110475,0.00010296,2]
[420624793,1776360639232,-1237.1242522,0.00010296,2]
[420624794,1776360639241,-9716.7738919,0.00010296,2]
[420624795,1776360639251,-500.0,0.00010299,2]
[420624796,1776360639261,-269.07752889,0.00010299,2]
[420624797,1776360639271,-500.0,0.00010299,2]
[420624798,1776360639280,-158.06293584,0.00010299,2]
[420624799,1776360639289,-163.7031708,0.00010299,2]
[420624800,1776360639299,-203007.24153551,0.000103,2]
[420624801,1776360639308,-1519.51,0.000103,2]
[420624802,1776360639318,-379.87,0.000103,2]
[420624803,1776360639327,-379.87,0.000103,2]
[420624804,1776360639337,-379.87,0.000103,2]
[420624805,1776360639346,-379.87,0.000103,2]
[420624807,1776360639356,-1138.33,0.000103,2]
[420624808,1776360639365,-1258.08,0.000103,2]
[420624810,1776360639374,-1220.02,0.000103,2]
[420624812,1776360639384,-1041.56,0.000103,2]
[420624814,1776360639393,-960.64,0.000103,2]
[420624816,1776360639402,-2089.44,0.000103,2]
[420624818,1776360639412,-509.99999989,0.000103,2]
[420624820,1776360639421,-1709.06,0.000103,2]
[420624821,1776360639431,-2043.1,0.000103,2]
[420624822,1776360639440,-2489.71,0.000103,2]
[420624823,1776360639451,-1829.84,0.000103,2]
[420624824,1776360639460,-761.74,0.000103,2]
[420624825,1776360639469,-625.14,0.000103,2]
[420624826,1776360639478,-1675.35,0.000103,2]
[420624827,1776360639487,-1800.13,0.000103,2]
[420624828,1776360639496,-2103.87,0.000103,2]
[420624829,1776360639506,-1088.33,0.000103,2]
[420624830,1776360639515,-165.3956,0.000103,2]
[420624831,1776360639524,-1356.61,0.000103,2]
[420624832,1776360639534,-858.33,0.000103,2]
[420624833,1776360639543,-858.33,0.000103,2]
[420624834,1776360639552,-858.33,0.000103,2]
[420624835,1776360639561,-858.33,0.000103,2]
[420624836,1776360639571,-1587.65,0.000103,2]
[420624837,1776360639580,-1674.16,0.000103,2]
[420624838,1776360639589,-264.68,0.000103,2]
[420624839,1776360639598,-948.89,0.000103,2]
[420624840,1776360639607,-1358.67,0.000103,2]